bitfinex-derivatives/quotes_SOLF0:USTF0_20260129
["timestamp","ask_amount","ask_price","bid_price","bid_amount"]
[1769710398416,6.26698095,118.12,118.07,3.26401704]
[1769710399214,3.50968596,118.11,118.07,3.26401704]
[1769710399411,2.75729499,118.12,118.07,10.89721704]
[1769710400014,6.26698095,118.12,118.07,10.89721704]
[1769710400918,6.26698095,118.11,118.06,7.6342]
[1769710401115,6.26698095,118.11,118.06,11.00472148]
[1769710402412,2.75729499,118.08,118.04,11.00542148]
[1769710402818,2.75729499,118.08,118.03,263.22]
[1769710402819,6.26698095,118.08,118.03,263.22]
[1769710403116,6.26698095,118.08,118.03,266.59052148]
[1769710403117,2.75729499,118.07,118.03,266.59052148]
[1769710403316,6.26698095,118.11,118.05,3.37052148]
[1769710403509,2.75729499,118.1,118.05,3.37052148]
[1769710403916,6.26698095,118.1,118.05,11.00542148]
[1769710404219,2.75729499,118.09,118.05,11.00542148]
[1769710405514,2.75729499,118.08,118.05,11.00542148]
[1769710407214,2.75729499,118.09,118.05,11.00542148]
[1769710407421,2.75729499,118.1,118.06,3.57097618]
[1769710407918,2.75729499,118.1,118.06,11.20497618]
[1769710408120,2.75729499,118.12,118.07,3.57097618]
[1769710408419,2.75729499,118.13,118.07,3.57097618]
[1769710408810,11.24462328,118.14,118.07,3.57097618]
[1769710408811,2.75729499,118.12,118.07,3.57097618]
[1769710409118,2.75729499,118.12,118.08,7.6329]
[1769710410223,10.52999842,118.14,118.1,3.57097618]
[1769710410420,2.75729499,118.14,118.1,3.57097618]
[1769710410625,2.75729499,118.15,118.1,3.57097618]
[1769710411320,2.75729499,118.14,118.1,3.57097618]
[1769710411619,2.75729499,118.11,118.07,3.57097618]
[1769710412015,18.87442328,118.13,118.07,3.57097618]
[1769710412318,2.75729499,118.1,118.07,3.57097618]
[1769710412822,2.75729499,118.08,118.04,3.57097618]
[1769710414027,2.75729499,118.08,118.04,11.20647618]
[1769710418524,2.75729499,118.08,118.04,3.57097618]
[1769710418728,2.75729499,118.06,118.03,266.28]
[1769710418923,2.75729499,118.05,118.02,7.6363]
[1769710419234,2.75729499,118.04,118.01,7.6374]
[1769710419623,3.5640263,118.07,118.01,11.13704733]
[1769710419824,2.75729499,118.05,118.01,11.13704733]
[1769710425234,2.75729499,118.06,118.01,11.13704733]
[1769710425828,6.32132129,118.07,118.01,13.89434232]
[1769710426734,6.32132129,118.07,118.01,11.13704733]
[1769710427436,6.32132129,118.07,118.02,7.6368]
[1769710431234,6.32132129,118.07,118.02,11.13644733]
[1769710431430,3.5640263,118.07,118.02,11.13644733]
[1769710431630,3.5640263,118.07,118.03,7.636]
[1769710431826,7.77270343,118.1,118.02,3.49964733]
[1769710432034,6.32132129,118.09,118.03,6.25694232]
[1769710432232,3.5640263,118.09,118.03,6.25694232]
[1769710432433,3.5640263,118.09,118.04,3.49964733]
[1769710432636,2.75729499,118.1,118.04,6.25694232]
[1769710432937,6.32132129,118.11,118.04,6.25694232]
[1769710433138,3.5640263,118.1,118.04,6.25694232]
[1769710433538,6.3226333,118.1,118.06,7.6342]
[1769710433740,3.5640263,118.08,118.02,6.25825433]
[1769710434036,6.3226333,118.08,118.02,3.49964733]
[1769710434236,6.3226333,118.08,118.03,7.6361]
[1769710434940,3.5640263,118.08,118.03,10.394707]
[1769710435534,3.5640263,118.08,118.03,7.6361]
[1769710435736,3.56911443,118.07,118.01,13.93399517]
[1769710435941,3.56911443,118.07,118.02,2.758607]
[1769710436343,3.56911443,118.07,118.03,7.6362]
[1769710436538,3.56911443,118.09,118.04,3.53858817]
[1769710437440,3.56911443,118.09,118.03,2.758607]
[1769710437644,3.56911443,118.08,118.02,6.29719517]
[1769710438448,3.56911443,118.08,118.03,7.6362]
[1769710440243,3.56911443,118.07,118.01,10.395607]
[1769710440450,3.56911443,118.07,118.01,13.93419517]
[1769710440845,3.56911443,118.07,118.02,10.395407]
[1769710441348,3.56911443,118.07,118.02,13.93399517]
[1769710441541,3.56911443,118.09,118.03,10.394607]
[1769710441743,3.56911443,118.09,118.04,2.758607]
[1769710443055,3.56911443,118.09,118.04,10.394107]
[1769710443355,3.56911443,118.09,118.04,11.17408817]
[1769710443655,3.56911443,118.09,118.05,2.758607]
[1769710444056,3.56911443,118.09,118.04,7.6355]
[1769710444257,3.56911443,118.08,118.04,2.758607]
[1769710444459,3.56911443,118.08,118.03,13.93339517]
[1769710447145,3.56911443,118.08,118.04,2.758607]
[1769710447344,3.56911443,118.08,118.03,11.17478817]
[1769710447557,3.56911443,118.08,118.04,2.758607]
[1769710453862,18.97421786,118.09,118.05,2.758607]
[1769710454061,11.20151443,118.09,118.05,2.758607]
[1769710454361,11.34181786,118.11,118.06,2.758607]
[1769710454566,11.34181786,118.11,118.07,2.758607]
[1769710455054,3.56911443,118.11,118.08,2.758607]
[1769710455661,18.96289362,118.13,118.08,2.758607]
[1769710455854,18.96289362,118.13,118.09,2.758607]
[1769710456054,18.96289362,118.13,118.08,2.758607]
[1769710461562,3.56911443,118.12,118.08,2.758607]
[1769710462265,18.96359362,118.12,118.06,7.6342]
[1769710462464,18.96359362,118.12,118.07,2.758607]
[1769710462863,3.56911443,118.11,118.06,7.6342]
[1769710463057,3.56911443,118.11,118.06,10.392807]
[1769710463364,3.56911443,118.11,118.06,13.93139517]
[1769710463557,3.56911443,118.11,118.07,2.758607]
[1769710464965,3.56911443,118.11,118.06,13.93139517]
[1769710465767,3.56911443,118.11,118.06,11.17278817]
[1769710466069,18.96419362,118.11,118.06,3.53858817]
[1769710466260,21.72280062,118.11,118.06,3.53858817]
[1769710466461,2.758607,118.1,118.06,3.53858817]
[1769710466961,3.35269092,118.08,118.04,7.6355]
[1769710467161,6.11129792,118.08,118.04,7.6355]
[1769710467762,6.11129792,118.08,118.02,13.97652178]
[1769710467957,6.11129792,118.08,118.02,3.58171478]
[1769710469469,3.35269092,118.08,118.03,3.58171478]
[1769710470164,13.74439792,118.08,118.03,3.58171478]
[1769710470368,3.35269092,118.06,117.98,3.58171478]
[1769710470567,6.11129792,118.06,118.0,3.58171478]
[1769710471368,13.74559792,118.06,118.0,11.21981478]
[1769710472866,2.758607,118.05,118.0,11.21981478]
[1769710476271,2.758607,118.05,118.01,3.44592832]
[1769710478075,10.98699092,118.06,118.01,3.44592832]
[1769710478270,2.758607,118.05,118.01,3.44592832]
[1769710479475,2.758607,118.06,118.01,3.44592832]
[1769710481076,2.758607,118.05,118.01,3.44592832]
[1769710481776,2.758607,118.03,117.99,3.44592832]
[1769710482076,2.758607,118.05,117.99,3.44592832]
[1769710482270,6.24065648,118.06,118.0,3.44592832]
[1769710482471,3.48204948,118.06,118.01,11.08322832]
[1769710482665,3.48204948,118.06,118.01,3.44592832]
[1769710482870,2.758607,118.07,118.01,3.44592832]
[1769710483073,2.758607,118.07,118.02,7.6368]
[1769710483580,2.758607,118.06,118.02,7.6368]
[1769710486378,2.758607,118.06,118.01,11.08332832]
[1769710487285,6.14836494,118.05,118.01,11.08332832]
[1769710488179,2.758607,118.06,118.01,11.08332832]
[1769710488385,6.14844211,118.05,118.01,11.08332832]
[1769710490778,6.24065648,118.06,118.01,3.44592832]
[1769710490978,6.15495493,118.05,118.01,3.44592832]
[1769710491192,6.24065648,118.06,118.01,3.44592832]
[1769710491391,6.15543801,118.05,118.01,3.44592832]
[1769710491587,6.24065648,118.06,118.01,3.44592832]
[1769710491792,6.15544355,118.05,118.02,3.44592832]
[1769710492092,13.87435648,118.07,118.02,3.44592832]
[1769710492291,2.758607,118.05,118.0,11.08402832]
[1769710492486,6.24065648,118.06,118.01,3.44592832]
[1769710492686,6.15476147,118.05,118.01,3.44592832]
[1769710494494,6.15476147,118.05,118.01,11.08332832]
[1769710494797,6.15476147,118.05,118.01,3.44592832]
[1769710496794,12.43547118,118.05,118.0,7.638]
[1769710497097,6.28070971,118.03,117.97,227.83001983]
[1769710497488,3.52037714,118.03,117.98,10.93973925]
[1769710497785,9.668708,118.03,117.98,10.93973925]
[1769710500302,20.06534057,118.03,117.98,3.30033925]
[1769710500602,6.1474778,118.02,117.98,3.30033925]
[1769710501495,6.1474778,118.02,117.98,10.93973925]
[1769710501892,6.1474778,118.02,117.98,3.30033925]
[1769710502597,3.52037714,118.0,117.94,3.30033925]
[1769710502902,12.42490827,118.0,117.94,3.30033925]
[1769710503200,6.28070971,118.0,117.94,3.30033925]
[1769710504004,6.28070971,118.0,117.94,10.94223925]
[1769710504495,6.28070971,117.99,117.94,10.94223925]
[1769710504694,6.28070971,117.98,117.93,7.6426]
[1769710504897,6.28070971,117.97,117.92,3.30033925]
[1769710505602,6.28070971,117.96,117.91,7.6439]
[1769710505896,3.52037714,117.96,117.91,3.30033925]
[1769710506094,6.28070971,117.98,117.92,3.30033925]
[1769710506295,3.52037714,117.98,117.93,2.76033257]
[1769710506495,3.52037714,117.98,117.93,6.06067182]
[1769710506701,3.52037714,117.98,117.93,3.30033925]
[1769710507295,2.76033257,117.99,117.93,10.94293925]
[1769710507497,6.28070971,118.0,117.94,3.30033925]
[1769710507704,6.28070971,117.99,117.94,3.30033925]
[1769710509304,6.28070971,117.99,117.94,10.94223925]
[1769710510907,3.52037714,117.99,117.94,10.94223925]
[1769710511106,3.52037714,118.01,117.95,7.6413]
[1769710511304,7.76397919,118.04,117.97,6.06067182]
[1769710511305,3.52037714,118.03,117.97,6.06067182]
[1769710511605,9.65341057,118.03,117.97,6.06067182]
[1769710511907,144.34460458,118.1,118.0,2.76033257]
[1769710511908,3.52037714,118.05,118.0,2.76033257]
[1769710512203,3.52037714,118.05,117.98,3.30033925]
[1769710512398,6.28070971,118.05,117.98,3.30033925]
[1769710512598,6.28070971,118.05,117.98,6.06067182]
[1769710513305,13.91590971,118.05,117.98,13.69947182]
[1769710513505,6.28070971,118.04,117.98,13.69947182]
[1769710513712,9.64864083,118.04,117.98,13.69947182]
[1769710513904,6.28070971,118.06,117.99,13.69947182]
[1769710514106,3.52037714,118.06,118.0,2.76033257]
[1769710514410,6.28070971,118.04,117.99,7.6388]
[1769710514910,13.91560971,118.06,118.0,7.638]
[1769710515106,3.52037714,118.06,118.01,2.76033257]
[1769710515314,3.52037714,118.06,118.0,6.06067182]
[1769710515611,3.52037714,118.06,118.01,2.76033257]
[1769710515913,3.52037714,118.06,118.0,6.06067182]
[1769710516213,9.66397417,118.06,118.0,6.06067182]
[1769710516403,9.66397417,118.06,118.01,7.6375]
[1769710516404,3.52037714,118.06,118.01,7.6375]
[1769710516814,9.6637735,118.06,118.01,7.6375]
[1769710517509,11.15307714,118.09,118.03,6.06067182]
[1769710517715,3.52037714,118.09,118.03,6.06067182]
[1769710518215,9.66403376,118.09,118.03,6.06067182]
[1769710518708,3.52037714,118.09,118.04,7.6355]
[1769710518912,9.66704728,118.09,118.04,7.6355]
[1769710519215,9.66704728,118.09,118.03,6.06067182]
[1769710520109,9.66704728,118.09,118.04,3.30033925]
[1769710520712,9.66704728,118.09,118.04,6.06067182]
[1769710521012,9.66704728,118.09,118.04,3.30033925]
[1769710521220,3.52037714,118.09,118.04,3.30033925]
[1769710522116,6.28070971,118.11,118.04,13.69617182]
[1769710523212,3.52037714,118.1,118.04,6.06067182]
[1769710523413,6.28070971,118.1,118.04,6.06067182]
[1769710523822,6.28070971,118.1,118.04,3.30033925]
[1769710524013,6.28070971,118.09,118.02,3.30033925]
[1769710524213,6.28070971,118.09,118.03,2.76033257]
[1769710524516,6.28070971,118.09,118.03,13.69677182]
[1769710525321,6.28070971,118.09,118.03,10.93643925]
[1769710525515,13.91310971,118.09,118.03,6.06067182]
[1769710525716,6.30372003,118.08,118.01,13.64306329]
[1769710527323,13.93672003,118.08,118.01,13.64306329]
[1769710531322,6.30372003,118.08,118.02,7.6365]
[1769710531519,3.54338746,118.08,118.03,3.24563072]
[1769710531726,3.54338746,118.08,118.03,6.00596329]
[1769710532418,3.54338746,118.08,118.03,13.64216329]
[1769710535126,10.91377561,118.1,118.04,11.19338685]
[1769710535330,13.67410818,118.1,118.04,11.19338685]
[1769710535730,6.04240818,118.1,118.05,7.6348]
[1769710535930,3.28207561,118.1,118.05,7.6348]
[1769710536437,6.04240818,118.12,118.06,6.31841942]
[1769710536639,3.28207561,118.12,118.06,6.31841942]
[1769710537332,3.28207561,118.12,118.07,7.6335]
[1769710537527,6.04240818,118.12,118.07,7.6335]
[1769710540348,3.28207561,118.1,118.06,7.634]
[1769710540647,6.04240818,118.1,118.04,3.55808685]
[1769710541344,6.04240818,118.1,118.05,7.6349]
[1769710541544,2.76033257,118.09,118.05,7.6349]
[1769710542847,6.04240818,118.1,118.05,7.6349]
[1769710543140,3.28207561,118.1,118.05,7.6349]
[1769710543347,6.04240818,118.1,118.05,7.6349]
[1769710543945,2.76033257,118.09,118.05,7.6349]
[1769710545847,2.76033257,118.09,118.05,11.19298685]
[1769710546049,2.76033257,118.1,118.06,11.19228685]
[1769710552455,8.90778897,118.1,118.06,11.19228685]
[1769710553551,8.90592378,118.1,118.06,11.19228685]
[1769710554255,2.75846738,118.1,118.06,11.19228685]
[1769710554656,6.04054299,118.11,118.06,11.19228685]
[1769710554856,6.15957589,118.1,118.06,11.19228685]
[1769710555249,6.15957589,118.09,118.06,11.19228685]
[1769710555455,2.75846738,118.1,118.06,11.19228685]
[1769710555754,6.16691293,118.09,118.06,11.19228685]
[1769710555955,2.75846738,118.1,118.06,11.19228685]
[1769710556155,6.16691293,118.09,118.06,11.19228685]
[1769710556352,6.16691293,118.08,118.06,11.19228685]
[1769710556554,13.78866137,118.11,118.06,11.19228685]
[1769710556754,6.04054299,118.11,118.06,11.19228685]
[1769710558257,13.78866137,118.11,118.06,11.19228685]
[1769710560153,2.75846738,118.1,118.06,11.19228685]
[1769710560358,7.38151444,118.1,118.06,7.6342]
[1769710560957,7.74811838,118.11,118.06,7.6342]
[1769710561356,7.38151444,118.1,118.04,7.635]
[1769710561562,2.75846738,118.09,118.04,7.635]
[1769710562154,7.38151444,118.09,118.04,7.635]
[1769710562358,7.38151444,118.09,118.0,276.95846738]
[1769710562359,15.12963282,118.07,118.0,276.95846738]
[1769710562559,7.38151444,118.07,118.0,276.95846738]
[1769710562760,7.38151444,118.07,118.0,274.2]
[1769710562958,7.38151444,118.07,118.01,7.6374]
[1769710562959,2.75846738,118.06,118.01,7.6374]
[1769710563164,2.75846738,118.04,117.97,345.93914282]
[1769710563359,2.75846738,118.04,117.97,227.09384282]
[1769710563666,2.75846738,118.03,117.98,7.6388]
[1769710563861,7.74811838,118.06,117.95,276.94]
[1769710563862,2.75846738,118.02,117.95,279.69846738]
[1769710564166,4.62304706,118.04,117.95,279.69846738]
[1769710564167,2.75846738,118.01,117.95,276.94]
[1769710565066,4.62304706,118.03,117.95,276.94]
[1769710565067,2.75846738,118.03,117.97,7.64]
[1769710565466,2.75846738,118.02,117.97,7.64]
[1769710565661,2.75846738,118.01,117.95,287.33936738]
[1769710565858,2.75846738,118.01,117.95,284.5809]
[1769710566171,2.75846738,118.01,117.96,7.6407]
[1769710566469,2.75846738,117.99,117.91,118.905]
[1769710566667,2.75846738,117.98,117.93,7.6426]
[1769710570877,4.62304706,118.0,117.92,121.65036738]
[1769710571077,2.75846738,117.99,117.92,121.65036738]
[1769710571478,7.38151444,118.0,117.93,2.75846738]
[1769710572773,12.25914706,118.04,117.97,10.39846738]
[1769710573082,7.38151444,118.03,117.97,10.39846738]
[1769710573280,2.75846738,118.02,117.97,7.64]
[1769710573485,4.62304706,118.03,117.97,7.64]
[1769710573684,7.38151444,118.03,117.97,7.64]
[1769710575177,7.38151444,118.03,117.98,7.6393]
[1769710575575,4.62304706,118.08,117.99,2.75846738]
[1769710575779,2.75846738,118.06,117.97,118.845]
[1769710576091,7.38151444,118.06,117.99,2.75846738]
[1769710576282,7.38151444,118.06,118.0,7.6379]
[1769710576983,4.62304706,118.06,118.0,10.39636738]
[1769710577283,4.62304706,118.06,118.01,10.39586738]
[1769710577790,4.62304706,118.06,118.02,7.6367]
[1769710577994,7.38151444,118.1,118.03,2.75846738]
[1769710578182,4.62304706,118.1,118.04,2.75846738]
[1769710578487,4.62304706,118.1,118.04,10.39386738]
[1769710578784,7.38151444,118.1,118.04,10.39386738]
[1769710579085,7.38151444,118.1,118.04,7.6354]
[1769710580181,7.38151444,118.1,118.04,10.39386738]
[1769710580387,7.38151444,118.1,118.05,7.6348]
[1769710580587,4.62304706,118.1,118.05,7.6348]
[1769710581887,7.38151444,118.12,118.06,7.6342]
[1769710582182,4.62304706,118.14,118.08,2.75846738]
[1769710582387,7.38151444,118.14,118.08,2.75846738]
[1769710582985,7.38151444,118.13,118.07,2.75846738]
[1769710583290,7.38151444,118.13,118.06,2.75846738]
[1769710583692,4.62304706,118.13,118.07,2.75846738]
[1769710584386,4.62304706,118.13,118.07,10.39196738]
[1769710584891,7.38151444,118.13,118.07,7.6335]
[1769710585291,7.38151444,118.12,118.05,10.39286738]
[1769710585488,7.38151444,118.12,118.05,2.75846738]
[1769710585794,7.38151444,118.11,118.04,2.75846738]
[1769710587088,4.62304706,118.11,118.05,2.75846738]
[1769710587296,4.62304706,118.13,118.07,2.75846738]
[1769710588095,4.62304706,118.13,118.08,2.75846738]
[1769710588595,4.62304706,118.13,118.07,10.39196738]
[1769710588795,4.62304706,118.13,118.08,2.75846738]
[1769710594199,4.62304706,118.13,118.07,10.39196738]
[1769710594901,12.25214706,118.14,118.08,2.75846738]
[1769710595495,4.62304706,118.13,118.07,10.39196738]
[1769710596103,12.25284706,118.13,118.07,10.39196738]
[1769710596397,4.62304706,118.12,118.07,7.6335]
[1769710596797,7.38151444,118.11,118.05,7.6343]
[1769710598804,15.01261444,118.11,118.05,7.6343]
[1769710599108,4.62304706,118.1,118.05,7.6343]
[1769710599908,4.62304706,118.1,118.04,10.39396738]
[1769710600103,12.25484706,118.1,118.04,7.6355]
[1769710600305,7.38151444,118.07,118.01,2.75846738]
[1769710600500,7.38151444,118.06,117.99,2.75846738]
[1769710600808,2.75846738,118.05,117.99,2.75846738]
[1769710601009,7.38151444,118.05,117.98,226.02539829]
[1769710601405,4.62304706,118.05,117.99,2.75846738]
[1769710601710,7.38151444,118.07,118.0,2.75846738]
[1769710603010,7.38151444,118.06,117.99,2.75846738]
[1769710603504,2.75846738,118.05,117.98,226.02539829]
[1769710604098,4.62304706,118.06,118.0,2.75846738]
[1769710604298,193.92304706,118.1,118.01,2.75846738]
[1769710604502,2.75846738,118.08,118.01,2.75846738]
[1769710605301,2.75846738,118.08,118.03,7.6362]
[1769710606512,2.75846738,118.09,118.04,7.6354]
[1769710607626,4.62304706,118.1,118.05,7.6348]
[1769710607808,10.38996738,118.11,118.05,7.6348]
[1769710608002,4.62304706,118.12,118.05,7.6348]
[1769710608003,2.75846738,118.1,118.05,7.6348]
[1769710608602,2.75846738,118.1,118.06,7.6342]
[1769710608808,2.75846738,118.11,118.06,7.6342]
[1769710609205,4.62304706,118.12,118.06,7.6342]
[1769710609408,7.38151444,118.12,118.06,7.6342]
[1769710610008,2.75846738,118.11,118.06,7.6342]
[1769710611709,7.38151444,118.11,118.06,7.6342]
[1769710611910,2.75846738,118.09,118.02,118.7941]
[1769710612107,2.75846738,118.08,118.01,118.8039]
[1769710612312,2.75846738,118.08,118.01,121.56236738]
[1769710612614,2.75846738,118.08,118.03,7.6361]
[1769710613019,2.75846738,118.08,118.02,2.75846738]
[1769710613218,4.62304706,118.09,118.02,2.75846738]
[1769710613219,7.38151444,118.09,118.02,2.75846738]
[1769710614413,7.38151444,118.09,118.04,7.6353]
[1769710615020,2.75846738,118.08,118.04,7.6353]
[1769710615709,2.75938999,118.08,118.04,7.6353]
[1769710616116,2.75938999,118.06,118.02,7.6364]
[1769710616318,7.38243705,118.07,118.01,2.75938999]
[1769710616514,2.75938999,118.09,118.02,2.75938999]
[1769710616718,4.62304706,118.1,118.04,7.6355]
[1769710616719,7.38243705,118.1,118.04,7.6355]
[1769710617115,6.1459558,118.09,118.04,7.6355]
[1769710617316,8.90534579,118.09,118.04,7.6355]
[1769710617512,7.38243705,118.1,118.05,7.6348]
[1769710617714,2.75938999,118.11,118.05,7.6348]
[1769710618023,8.90797283,118.11,118.05,7.6348]
[1769710618221,6.14858284,118.1,118.05,7.6348]
[1769710619023,6.14858284,118.1,118.06,7.6342]
[1769710619214,2.75938999,118.11,118.06,7.6342]
[1769710619418,7.38243705,118.09,118.0,118.8129]
[1769710619617,2.75938999,118.06,118.01,7.6374]
[1769710619818,2.75938999,118.05,118.01,7.6374]
[1769710620318,2.75938999,118.04,118.0,7.6381]
[1769710620526,2.75938999,118.04,117.98,503.72693091]
[1769710620719,2.75938999,118.05,117.98,506.4863209]
[1769710621231,2.75938999,118.04,117.98,503.72693091]
[1769710621420,2.75938999,118.04,118.0,7.6376]
[1769710621617,6.15543629,118.06,118.0,7.6376]
[1769710621924,4.62304706,118.06,118.0,7.6376]
[1769710622115,10.77813452,118.05,118.0,7.6376]
[1769710622315,4.62304706,118.05,118.0,7.6376]
[1769710630435,4.62304706,118.07,118.01,7.6374]
[1769710630732,11.19662204,118.05,117.98,280.46]
[1769710631032,11.19662204,118.05,117.99,7.6387]
[1769710631033,4.62304706,118.05,117.99,7.6387]
[1769710632533,4.62304706,118.04,117.99,7.6387]
[1769710637333,4.62304706,118.04,117.98,280.46]
[1769710637526,4.62304706,118.04,118.0,7.6381]
[1769710637725,7.6343,118.06,118.0,7.6381]
[1769710637925,12.25734706,118.06,118.0,7.6381]
[1769710638436,6.18131866,118.05,118.0,7.6381]
[1769710638740,10.80436572,118.05,118.0,7.6381]
[1769710639036,10.80400949,118.04,117.98,280.46]
[1769710639235,4.62304706,118.04,117.98,280.46]
[1769710640339,4.62304706,118.04,117.99,7.6387]
[1769710641739,4.62304706,118.04,118.0,2.7608332]
[1769710642034,7.6343,118.06,118.0,10.3988332]
[1769710642238,10.81349325,118.05,118.01,2.7608332]
[1769710642438,10.81349325,118.05,118.0,10.3988332]
[1769710642439,6.19025143,118.04,118.0,10.3988332]
[1769710645034,4.62304706,118.04,117.99,7.6387]
[1769710645233,6.18996574,118.03,117.99,7.6387]
[1769710645440,10.81249814,118.02,117.98,2.7608332]
[1769710645637,4.62304706,118.01,117.92,118.8965]
[1769710645841,4.62304706,118.0,117.94,2.7608332]
[1769710646034,4.62304706,118.0,117.95,2.7608332]
[1769710649143,4.62304706,117.99,117.94,2.7608332]
[1769710649632,7.6381,118.0,117.91,2.7608332]
[1769710649633,4.62304706,117.97,117.91,2.7608332]
[1769710649835,4.62304706,117.96,117.9,2.7608332]
[1769710650939,12.26464706,117.95,117.89,2.7608332]
[1769710652246,12.26524706,117.94,117.89,2.7608332]
[1769710652642,4.62304706,117.93,117.84,415.474]
[1769710652943,4.62304706,117.93,117.88,2.7608332]
[1769710653239,12.26434706,117.96,117.9,2.7608332]
[1769710653446,4.62304706,117.95,117.9,2.7608332]
[1769710654044,4.62304706,117.95,117.89,2.7608332]
[1769710654549,4.62304706,117.94,117.88,2.7608332]
[1769710655249,4.62304706,117.93,117.88,2.7608332]
[1769710658350,4.62304706,117.93,117.89,2.7608332]
[1769710659356,4.62304706,117.93,117.86,7.6468]
[1769710659555,4.62304706,117.93,117.88,2.7608332]
[1769710661455,4.62304706,117.93,117.89,2.7608332]
[1769710664464,4.62304706,117.93,117.86,7.6468]
[1769710664761,4.62304706,117.93,117.89,2.7608332]
[1769710665258,12.26464706,117.95,117.91,2.7608332]
[1769710665457,4.62304706,117.95,117.91,2.7608332]
[1769710666460,4.62304706,117.97,117.94,2.7608332]
[1769710667063,4.62304706,118.0,117.94,2.7608332]
[1769710667468,4.62304706,117.98,117.94,2.7608332]
[1769710668567,4.62304706,117.95,117.88,2.7608332]
[1769710668766,4.62304706,117.94,117.88,2.7608332]
[1769710668966,4.62304706,117.94,117.88,10.4061332]
[1769710670263,4.62304706,117.94,117.89,10.4060332]
[1769710671768,4.62304706,117.94,117.88,10.4067332]
[1769710672971,12.26514706,117.94,117.88,7.6459]
[1769710673172,4.62304706,117.92,117.86,2.7608332]
[1769710673574,4.62304706,117.92,117.83,420.10840099]
[1769710674375,12.26634706,117.92,117.86,7.6472]
[1769710676081,12.26704706,117.91,117.82,125.58270099]
[1769710676280,4.62304706,117.9,117.82,6.58840099]
[1769710677177,4.62304706,117.9,117.81,119.0056]
[1769710677375,4.62304706,117.89,117.82,7.6492]
[1769710677580,4.62304706,117.89,117.8,294.46]
[1769710678275,4.62304706,117.8,117.7,119.1116]
[1769710678477,4.62304706,117.78,117.68,6.59299069]
[1769710678668,4.62304706,117.78,117.66,125.75169069]
[1769710678868,4.62304706,117.78,117.68,6.59299069]
[1769710679081,4.62304706,117.78,117.69,119.1283]
[1769710679282,4.62304706,117.78,117.7,6.59299069]
[1769710680078,4.62304706,117.78,117.7,14.25029069]
[1769710680282,7.6522,117.79,117.7,14.25029069]
[1769710680477,7.6509,117.81,117.72,6.59299069]
[1769710680681,7.6509,117.81,117.74,6.59299069]
[1769710680870,12.27394706,117.81,117.72,14.24909069]
[1769710681273,7.6514,117.8,117.71,294.88]
[1769710681476,7.6514,117.8,117.7,6.59299069]
[1769710681477,4.62304706,117.79,117.7,6.59299069]
[1769710681666,4.62304706,117.79,117.68,125.72799069]
[1769710681871,4.62304706,117.77,117.68,14.25139069]
[1769710682483,4.62304706,117.76,117.68,14.25139069]
[1769710682679,4.62304706,117.76,117.68,6.59299069]
[1769710682880,4.62304706,117.74,117.63,533.3076]
[1769710683077,4.62304706,117.71,117.6,119.2172]
[1769710683384,4.62304706,117.71,117.61,6.59299069]
[1769710683770,4.62304706,117.71,117.61,14.25619069]
[1769710684981,4.62304706,117.69,117.59,7.6645]
[1769710685173,4.62304706,117.69,117.6,6.59299069]
[1769710685174,4.62304706,117.68,117.6,6.59299069]
[1769710686174,4.62304706,117.67,117.58,295.02]
[1769710686374,4.62304706,117.67,117.58,301.61299069]
[1769710686576,4.62304706,117.67,117.58,295.02]
[1769710686877,4.62304706,117.66,117.57,3.74879243]
[1769710687276,4.62304706,117.66,117.57,10.34178312]
[1769710688182,4.62304706,117.65,117.57,3.74879243]
[1769710688973,4.62304706,117.65,117.58,6.59299069]
[1769710689176,4.62304706,117.65,117.57,3.74879243]
[1769710689484,4.62304706,117.65,117.57,10.34178312]
[1769710689683,4.62304706,117.65,117.57,3.74879243]
[1769710690073,4.62304706,117.62,117.57,3.74879243]
[1769710691183,4.62304706,117.61,117.57,3.74879243]
[1769710692887,3.39220064,117.6,117.51,1.67027209]
[1769710693379,3.39220064,117.6,117.52,7.6691]
[1769710693590,3.39220064,117.6,117.53,8.26326278]
[1769710694081,3.39220064,117.63,117.54,1.67027209]
[1769710694286,3.39220064,117.63,117.56,1.67027209]
[1769710694684,3.39220064,117.62,117.53,9.33867209]
[1769710694980,3.39220064,117.58,117.48,121.00977209]
[1769710695187,3.39220064,117.58,117.5,8.26326278]
[1769710695688,3.39220064,117.61,117.53,1.67027209]
[1769710696289,3.39220064,117.6,117.53,1.67027209]
[1769710698484,3.39220064,117.59,117.52,6.59299069]
[1769710698783,3.39220064,117.59,117.5,9.34047209]
[1769710698784,3.39220064,117.55,117.47,1.67027209]
[1769710698980,7.6682,117.54,117.47,1.67027209]
[1769710699181,3.39220064,117.55,117.47,1.67027209]
[1769710699383,3.39220064,117.55,117.48,1.67027209]
[1769710700184,3.39220064,117.53,117.45,1.67027209]
[1769710700582,3.39220064,117.51,117.44,0.25544959]